bitfinex/quotes_SOLUSD_20241222
["timestamp","ask_amount","ask_price","bid_price","bid_amount"]
[1734882084551,0.12549,181.23,181.22,29.98312682]
[1734882084718,8.60731483,181.28,181.22,29.98312682]
[1734882084923,8.60731483,181.28,181.27,29.98312682]
[1734882085151,8.60731483,181.29,181.27,29.98312682]
[1734882085850,0.12549,181.28,181.27,29.98312682]
[1734882086050,0.12549,181.28,181.27,3.11829659]
[1734882086235,20.12549,181.28,181.27,3.11829659]
[1734882086622,0.12549,181.28,181.27,3.11829659]
[1734882087947,20.0,181.29,181.27,3.11829659]
[1734882088137,33.82278362,181.33,181.28,29.98312682]
[1734882088352,7.4813,181.35,181.32,29.98312682]
[1734882088539,0.12549,181.34,181.29,29.98312682]
[1734882088742,0.12549,181.34,181.28,29.98312682]
[1734882089057,0.12549,181.32,181.28,29.98312682]
[1734882089663,0.12549,181.29,181.28,29.98312682]
[1734882092947,0.12549,181.29,181.25,29.98312682]
[1734882094158,0.12549,181.29,181.27,29.98312682]
[1734882094580,0.12549,181.29,181.28,29.98312682]
[1734882096175,0.12549,181.29,181.27,18.42808702]
[1734882096565,0.12549,181.29,181.26,18.42808702]
[1734882098099,0.12549,181.29,181.23,18.42808702]
[1734882098701,0.12549,181.29,181.24,18.42808702]
[1734882099063,0.12549,181.29,181.17,1.6089]
[1734882099260,0.12549,181.29,181.18,18.42808702]
[1734882100497,22.39657907,181.29,181.18,18.42808702]
[1734882100660,0.12549,181.26,181.18,18.42808702]
[1734882100987,0.12549,181.26,181.2,18.42808702]
[1734882101464,20.12549,181.26,181.2,18.42808702]
[1734882102569,20.12549,181.26,181.22,18.42808702]
[1734882102885,10.8784039,181.29,181.24,18.42808702]
[1734882103097,8.60731483,181.29,181.24,18.42808702]
[1734882103286,0.12549,181.28,181.24,18.42808702]
[1734882103785,8.60731483,181.29,181.26,18.42808702]
[1734882103989,8.60731483,181.31,181.26,18.42808702]
[1734882104167,8.60731483,181.31,181.25,18.42808702]
[1734882104586,0.12549,181.3,181.25,18.42808702]
[1734882104885,20.0,181.28,181.27,18.42808702]
[1734882105065,20.0,181.28,181.25,18.42808702]
[1734882105066,0.12549,181.27,181.25,18.42808702]
[1734882105470,0.12549,181.27,181.24,24.77378702]
[1734882105865,0.12549,181.29,181.23,1.655]
[1734882106072,0.12549,181.29,181.22,18.42808702]
[1734882106681,0.12549,181.29,181.23,18.42808702]
[1734882106888,0.12549,181.29,181.24,18.42808702]
[1734882107091,20.12549,181.29,181.24,18.42808702]
[1734882107890,0.12549,181.29,181.24,18.42808702]
[1734882108083,0.12549,181.29,181.22,42.20497102]
[1734882108396,20.0,181.3,181.25,18.42808702]
[1734882108598,0.12549,181.29,181.25,18.42808702]
[1734882109098,20.0,181.3,181.25,18.42808702]
[1734882109277,20.0,181.3,181.24,42.20497102]
[1734882109569,0.12549,181.29,181.23,18.42808702]
[1734882110202,0.12549,181.3,181.22,53.73306909]
[1734882110504,20.12549,181.3,181.22,53.73306909]
[1734882110705,20.12549,181.3,181.22,54.56048371]
[1734882111602,20.12549,181.3,181.23,13.7946]
[1734882111802,20.12549,181.3,181.24,23.776884]
[1734882114900,20.0,181.3,181.24,23.776884]
[1734882115109,20.0,181.3,181.28,29.95618509]
[1734882115617,20.0,181.3,181.26,53.73306909]
[1734882116180,2.23418319,181.33,181.26,23.776884]
[1734882116181,22.23418319,181.33,181.26,23.776884]
[1734882116381,0.12549,181.32,181.26,23.776884]
[1734882118400,0.12549,181.32,181.26,53.73306909]
[1734882118584,8.60731483,181.37,181.31,29.95618509]
[1734882118787,8.60731483,181.37,181.36,29.95618509]
[1734882118985,2.05611483,181.37,181.36,55.39816909]
[1734882119180,1.483e-05,181.37,181.36,62.64842895]
[1734882119385,0.6638967,181.38,181.36,62.64842895]
[1734882119604,0.6638967,181.38,181.37,53.73306909]
[1734882120106,0.6638967,181.38,181.37,67.51696909]
[1734882120682,9.67e-05,181.38,181.37,67.51696909]
[1734882120879,5.847,181.54,181.37,67.51696909]
[1734882121086,5.847,181.54,181.43,29.95618509]
[1734882121310,0.12549,181.55,181.44,23.776884]
[1734882121808,7.496,181.58,181.44,23.776884]
[1734882122210,0.12549,181.54,181.38,0.82641817]
[1734882122437,0.12549,181.49,181.34,43.74178509]
[1734882122704,0.12549,181.49,181.36,6.4235]
[1734882123020,0.12549,181.44,181.33,29.95618509]
[1734882123196,0.12549,181.44,181.32,6.1426]
[1734882123506,0.12549,181.44,181.27,49.88968509]
[1734882123705,0.12549,181.39,181.27,49.88968509]
[1734882123906,0.12549,181.39,181.32,29.95618509]
[1734882124111,0.12549,181.39,181.33,29.95618509]
[1734882124608,27.496,181.48,181.33,29.95618509]
[1734882124609,0.12549,181.44,181.33,29.95618509]
[1734882124790,0.12549,181.44,181.32,43.74378509]
[1734882124986,0.12549,181.44,181.36,29.95618509]
[1734882125199,9.69624961,181.48,181.36,29.95618509]
[1734882125601,0.12549,181.47,181.36,29.95618509]
[1734882125849,0.12549,181.47,181.37,23.776884]
[1734882126321,0.12549,181.44,181.35,23.776884]
[1734882126620,0.12549,181.44,181.34,23.776884]
[1734882126912,0.12549,181.44,181.34,53.73306909]
[1734882127400,0.12549,181.44,181.35,29.95618509]
[1734882127605,0.12549,181.44,181.36,53.73306909]
[1734882128119,0.12549,181.44,181.35,53.73306909]
[1734882128289,0.12549,181.44,181.35,23.776884]
[1734882128626,0.12549,181.44,181.29,29.95618509]
[1734882128799,0.12549,181.4,181.28,29.95618509]
[1734882128986,0.12549,181.4,181.3,29.95618509]
[1734882129315,0.12549,181.44,181.29,29.95618509]
[1734882129691,0.12549,181.44,181.31,29.95618509]
[1734882129997,0.12549,181.44,181.32,29.95618509]
[1734882130316,0.12549,181.44,181.33,23.776884]
[1734882130718,0.12549,181.44,181.32,67.52046909]
[1734882130891,0.12549,181.44,181.33,29.95618509]
[1734882131101,0.12549,181.44,181.34,23.776884]
[1734882131302,0.12549,181.44,181.34,53.73306909]
[1734882131588,8.04724961,181.48,181.36,23.776884]
[1734882131825,0.12549,181.47,181.36,53.73306909]
[1734882131994,0.12549,181.47,181.36,23.776884]
[1734882132202,0.12549,181.47,181.35,23.776884]
[1734882132727,0.12549,181.47,181.36,18.40956465]
[1734882132936,0.12549,181.47,181.37,23.776884]
[1734882133220,0.12549,181.44,181.37,23.776884]
[1734882134229,0.12549,181.44,181.36,23.776884]
[1734882138375,0.12549,181.44,181.35,23.776884]
[1734882138849,0.12549,181.44,181.33,18.40956465]
[1734882139013,0.12549,181.44,181.35,18.40956465]
[1734882139436,0.12549,181.44,181.35,32.19496465]
[1734882139636,0.12549,181.44,181.36,18.40956465]
[1734882140035,0.12549,181.44,181.37,23.776884]
[1734882140541,0.12549,181.44,181.37,18.40956465]
[1734882140727,0.12549,181.44,181.38,23.776884]
[1734882141316,20.0,181.45,181.38,42.18644865]
[1734882141565,2.20024961,181.48,181.4,23.776884]
[1734882141847,0.12549,181.47,181.4,23.776884]
[1734882142154,22.064756,181.5,181.4,23.776884]
[1734882142631,22.064756,181.5,181.4,18.40956465]
[1734882143049,0.12549,181.46,181.4,18.40956465]
[1734882143361,20.0,181.49,181.42,18.40956465]
[1734882143679,20.12549,181.48,181.4,32.19066465]
[1734882144175,20.12549,181.48,181.4,13.7811]
[1734882144343,20.12549,181.48,181.37,38.68566465]
[1734882144552,20.12549,181.48,181.37,13.7836]
[1734882144947,20.12549,181.48,181.38,18.40956465]
[1734882145163,22.33635058,181.48,181.37,32.19316465]
[1734882145784,22.33635058,181.48,181.38,23.776884]
[1734882145954,22.33635058,181.48,181.39,13.7824]
[1734882146144,2.33635058,181.48,181.4,18.40956465]
[1734882146341,2.33635058,181.48,181.41,42.18644865]
[1734882147345,0.12549,181.5,181.42,18.40956465]
[1734882147767,0.12549,181.47,181.42,18.40956465]
[1734882147957,20.0,181.48,181.43,43.01292737]
[1734882148755,20.0,181.48,181.43,42.18644865]
[1734882149481,20.0,181.48,181.44,18.40956465]
[1734882149789,0.12549,181.5,181.44,18.40956465]
[1734882150566,0.12549,181.5,181.45,23.776884]
[1734882150779,0.12549,181.51,181.45,23.776884]
[1734882151091,0.12549,181.51,181.45,18.40956465]
[1734882151283,0.12549,181.52,181.45,18.40956465]
[1734882151594,0.12549,181.52,181.44,23.776884]
[1734882151888,0.12549,181.52,181.41,23.776884]
[1734882152095,0.12549,181.52,181.4,32.19086465]
[1734882152385,0.12549,181.49,181.4,13.7813]
[1734882152959,0.12549,181.49,181.4,32.19086465]
[1734882153362,0.12549,181.49,181.4,13.7813]
[1734882155257,0.12549,181.49,181.38,23.776884]
[1734882155464,0.12549,181.47,181.38,23.776884]
[1734882155857,0.12549,181.47,181.4,23.776884]
[1734882156103,0.12549,181.47,181.4,42.18644865]
[1734882156263,0.12549,181.47,181.4,18.40956465]
[1734882157578,0.12549,181.47,181.4,32.19066465]
[1734882158471,0.12549,181.47,181.4,13.7811]
[1734882163403,1.6511,181.48,181.41,42.18644865]
[1734882163725,20.0,181.5,181.43,18.40956465]
[1734882163890,0.12549,181.49,181.43,18.40956465]
[1734882165207,0.12549,181.52,181.43,18.40956465]
[1734882165414,0.12549,181.49,181.43,18.40956465]
[1734882166103,0.12549,181.49,181.42,13.7796]
[1734882172024,20.0,181.5,181.43,42.18644865]
[1734882172511,0.12549,181.49,181.44,18.40956465]
[1734882173594,0.12549,181.49,181.44,32.18766465]
[1734882175610,0.12549,181.49,181.44,13.7781]
[1734882175805,0.12549,181.49,181.42,18.40956465]
[1734882179521,0.12549,181.49,181.43,38.38277229]
[1734882179719,0.12549,181.49,181.43,14.60588829]
[1734882179900,0.12549,181.49,181.43,13.7794]
[1734882182829,0.12549,181.49,181.42,23.776884]
[1734882183029,20.12549,181.49,181.42,23.776884]
[1734882183343,20.12549,181.49,181.37,13.7835]
[1734882184206,0.12549,181.47,181.37,13.7835]
[1734882184421,0.12549,181.47,181.39,13.7824]
[1734882184733,20.12549,181.47,181.4,35.27349053]
[1734882185115,20.0,181.47,181.4,35.27349053]
[1734882185339,20.0,181.47,181.43,23.776884]
[1734882185501,16.08786448,181.51,181.43,23.776884]
[1734882185502,20.0,181.48,181.44,11.49660653]
[1734882185832,20.0,181.48,181.42,35.27349053]
[1734882186006,0.12549,181.47,181.42,35.27349053]
[1734882186201,0.12549,181.47,181.42,23.776884]
[1734882186440,0.12549,181.47,181.41,23.776884]
[1734882186619,20.0,181.48,181.42,11.49660653]
[1734882186823,20.0,181.48,181.43,23.776884]
[1734882187636,17.21462967,181.51,181.46,11.49660653]
[1734882187802,17.21462967,181.51,181.49,11.49660653]
[1734882188014,11.61032967,181.51,181.5,35.27349053]
[1734882188235,33.82278362,181.53,181.51,23.776884]
[1734882188432,0.6638967,181.56,181.53,0.12549]
[1734882188628,117.34488067,181.65,181.58,20.0]
[1734882188819,117.34488067,181.65,181.57,41.3062]
[1734882188820,117.34488067,181.65,181.64,11.49660653]
[1734882189230,7.25487172,181.71,181.64,11.49660653]
[1734882189414,7.25487172,181.71,181.66,11.49660653]
[1734882189739,7.25487172,181.71,181.67,11.49660653]
[1734882190112,7.25487172,181.71,181.67,18.34233269]
[1734882190437,2.17945049,181.78,181.7,18.34233269]
[1734882190641,0.12549,181.73,181.68,18.34233269]
[1734882190827,0.12549,181.73,181.63,18.34233269]
[1734882191225,9.43432149,181.78,181.67,18.34233269]
[1734882191423,9.43432149,181.78,181.68,18.34233269]
[1734882191623,2.17945049,181.78,181.68,18.34233269]
[1734882191836,0.12549,181.73,181.68,18.34233269]
[1734882192119,2.17945049,181.78,181.68,18.34233269]
[1734882193343,0.12549,181.73,181.67,18.34233269]
[1734882193532,0.12549,181.73,181.63,19.16764079]
[1734882193731,0.12549,181.69,181.62,19.94243269]
[1734882193939,0.12549,181.69,181.62,18.34233269]
[1734882194346,0.12549,181.69,181.61,32.10753269]
[1734882194520,0.12549,181.69,181.62,0.82559028]
[1734882194720,0.12549,181.69,181.62,19.16792297]
[1734882195647,2.90640307,181.74,181.64,18.34233269]
[1734882195838,0.6638967,181.74,181.65,18.34233269]
[1734882196039,0.6638967,181.74,181.66,18.34233269]
[1734882196549,0.12549,181.73,181.66,18.34233269]
[1734882196757,0.12549,181.73,181.66,32.10423269]
[1734882197055,0.6638967,181.74,181.68,18.34233269]
[1734882197753,0.6638967,181.74,181.69,18.34233269]
[1734882197948,9.67e-05,181.74,181.73,18.34233269]
[1734882198148,9.67e-05,181.74,181.73,42.11921669]
[1734882198450,9.67e-05,181.74,181.73,42.94405708]
[1734882198934,9.67e-05,181.74,181.73,56.70065708]
[1734882199440,5.847,181.9,181.74,23.776884]
[1734882199651,0.12549,181.9,181.77,18.34233269]
[1734882200042,0.12549,181.9,181.75,0.82480458]
[1734882200552,23.902374,181.9,181.75,30.60643477]
[1734882200856,0.12549,181.86,181.77,29.78163019]
[1734882201055,20.0,181.88,181.78,30.60642143]
[1734882201559,0.12549,181.87,181.78,30.60642143]
[1734882201757,0.12549,181.87,181.79,29.78163019]
[1734882201965,8.09828634,181.91,181.79,29.78163019]
[1734882202328,2.25128634,181.91,181.8,29.78163019]
[1734882202625,0.6638967,181.92,181.81,30.60625972]
[1734882202966,0.12549,181.91,181.82,13.7498]
[1734882205469,22.87820411,181.92,181.83,0.82460787]
[1734882205679,2.87820411,181.92,181.83,0.82460787]
[1734882205965,0.12549,181.91,181.83,0.82460787]
[1734882206465,0.6638967,181.92,181.85,29.78163019]
[1734882206715,0.12549,181.91,181.83,30.60623806]
[1734882206846,0.12549,181.91,181.82,13.7498]
[1734882208437,0.6638967,181.92,181.82,13.7498]
[1734882208660,0.6638967,181.92,181.83,0.82462995]
[1734882209251,0.12549,181.91,181.83,0.82462995]
[1734882209940,0.12549,181.91,181.84,13.7483]
[1734882210139,0.12549,181.91,181.83,0.82462995]
[1734882210337,0.12549,181.91,181.8,13.7509]
[1734882210546,0.12549,181.87,181.77,13.7534]
[1734882210772,0.12549,181.87,181.79,29.78163019]
[1734882211084,0.12549,181.87,181.8,0.8246287]
[1734882211249,0.12549,181.91,181.82,29.78163019]
[1734882211452,0.12549,181.91,181.83,0.82451302]
[1734882212680,0.6638967,181.92,181.83,14.57341302]
[1734882212884,0.12549,181.91,181.83,14.57341302]
[1734882213883,0.12549,181.91,181.85,13.7475]
[1734882214054,0.12549,181.91,181.86,0.82447142]
[1734882214255,0.6638967,181.92,181.86,0.82447142]
[1734882215350,0.12549,181.91,181.82,0.82443042]
[1734882215557,0.12549,181.91,181.82,14.57393042]
[1734882218365,23.902374,181.91,181.82,13.7495]
[1734882218567,0.12549,181.87,181.79,13.7518]
[1734882221056,0.12549,181.83,181.76,13.7543]
[1734882221778,0.12549,181.79,181.73,13.7564]
[1734882223989,0.12549,181.79,181.71,0.82511968]
[1734882223990,20.0,181.76,181.71,0.82511968]
[1734882224295,20.0,181.72,181.64,13.7628]
[1734882224590,0.12549,181.71,181.64,13.7628]
[1734882225084,20.0,181.75,181.64,13.7628]
[1734882225261,20.0,181.75,181.64,32.92932488]
[1734882225464,0.12549,181.74,181.66,13.7619]
[1734882225672,0.12549,181.74,181.66,32.92836495]
[1734882225992,0.12549,181.74,181.67,18.34114184]
[1734882226157,0.12549,181.74,181.68,0.82521144]
[1734882226379,20.0,181.75,181.68,19.16635328]
[1734882227494,20.0,181.75,181.69,32.10084184]
[1734882229792,0.12549,181.74,181.69,13.7597]
[1734882230896,0.12549,181.74,181.65,13.7627]
[1734882231063,23.902374,181.74,181.65,13.7627]
[1734882231263,23.902374,181.74,181.61,13.765]
[1734882231264,0.12549,181.7,181.61,13.765]
[1734882232891,0.12549,181.7,181.62,0.82557432]
[1734882234200,0.12549,181.7,181.63,13.7642]
[1734882235721,0.12549,181.66,181.6,13.7662]
[1734882236283,0.12549,181.64,181.6,13.7662]
[1734882236756,0.12549,181.64,181.57,13.7686]
[1734882236876,20.0,181.61,181.49,29.83142596]
[1734882237079,20.0,181.61,181.52,29.83142596]
[1734882237306,20.0,181.61,181.53,29.83142596]
[1734882237668,0.12549,181.64,181.54,13.771]
[1734882239002,0.12549,181.64,181.55,29.83142596]
[1734882240109,0.12549,181.64,181.56,13.7695]
[1734882241000,0.12549,181.64,181.53,71.14682596]
[1734882241212,0.12549,181.64,181.56,29.83142596]
[1734882241390,0.12549,181.64,181.57,30.65716073]
[1734882241832,20.0,181.65,181.57,30.65716073]
[1734882242010,20.0,181.65,181.58,29.83142596]
[1734882242536,20.0,181.65,181.57,29.83142596]
[1734882242838,20.0,181.65,181.58,30.65708358]
[1734882243024,20.0,181.65,181.59,13.7672]
[1734882244142,1.5155,181.69,181.61,29.83142596]
[1734882244305,1.5155,181.69,181.6,30.65706592]
[1734882245227,0.12549,181.68,181.61,13.7657]
[1734882245431,0.12549,181.68,181.62,0.82560799]
[1734882245634,20.0,181.7,181.62,30.65703395]
[1734882245929,20.0,181.7,181.63,29.83142596]
[1734882246133,0.12549,181.72,181.64,0.82539578]
[1734882246625,0.12549,181.72,181.65,13.7627]
[1734882247004,5.847,181.73,181.65,13.7627]
[1734882247207,0.12549,181.72,181.65,13.7627]
[1734882247828,0.12549,181.69,181.65,13.7627]
[1734882251505,1.5479,181.74,181.65,13.7627]
[1734882251743,0.12549,181.73,181.65,13.7627]
[1734882252722,20.0,181.7,181.62,13.7648]
[1734882252907,0.12549,181.65,181.62,13.7648]
[1734882253734,0.12549,181.65,181.59,13.7668]
[1734882255038,0.12549,181.61,181.55,13.7703]
[1734882256045,0.12549,181.61,181.52,13.7723]
[1734882256747,20.0,181.57,181.52,13.7723]
[1734882256949,20.0,181.57,181.49,13.7748]
[1734882257144,0.12549,181.56,181.49,13.7748]
[1734882260857,0.12549,181.54,181.46,13.7771]
[1734882261522,0.12549,181.54,181.46,59.68529083]
[1734882261731,20.0,181.57,181.48,18.35399083]
[1734882262032,0.12549,181.56,181.48,18.35399083]
[1734882262540,0.12549,181.56,181.46,41.3313]
[1734882262541,0.12549,181.56,181.47,18.35399083]
[1734882262852,0.12549,181.56,181.48,13.7756]
[1734882263253,0.12549,181.56,181.48,32.12959083]
[1734882263461,2.19335241,181.58,181.49,18.35399083]
[1734882263760,1.6423,181.59,181.51,18.35399083]
[1734882263926,0.12549,181.58,181.52,18.35399083]
[1734882264126,5.847,181.6,181.53,18.35399083]
[1734882264345,5.847,181.6,181.52,18.35399083]
[1734882264733,1.6423,181.63,181.54,13.771]
[1734882265052,0.12549,181.62,181.54,13.771]
[1734882266658,0.12549,181.6,181.54,13.771]
[1734882270164,0.12549,181.6,181.5,59.67629083]
[1734882270456,0.12549,181.6,181.5,41.3223]
[1734882271051,0.12549,181.6,181.51,18.35399083]
[1734882271347,0.12549,181.6,181.5,59.67629083]
[1734882273055,0.12549,181.6,181.52,41.3176]
[1734882273922,0.12549,181.6,181.52,59.67159083]
[1734882274454,0.12549,181.6,181.54,13.771]
[1734882275044,20.0,181.61,181.54,13.771]
[1734882276153,3.83359423,181.63,181.54,59.66709083]
[1734882276453,1.6423,181.63,181.55,0.8258705]
[1734882276660,0.12549,181.62,181.56,13.7695]
[1734882277657,20.0,181.61,181.56,13.7695]
[1734882279278,0.12549,181.6,181.56,13.7695]
[1734882281345,20.0,181.61,181.56,13.7695]
[1734882284290,0.12549,181.6,181.53,14.59726881]
[1734882284637,0.12549,181.6,181.53,13.7713]
[1734882286164,0.12549,181.6,181.51,18.35399083]
[1734882286363,0.12549,181.6,181.5,16.24596784]
[1734882286364,0.12549,181.6,181.5,13.7737]
[1734882286576,0.12549,181.56,181.47,32.13029083]
[1734882287263,0.12549,181.56,181.46,20.68506454]
[1734882287465,0.12549,181.52,181.43,18.35399083]
[1734882287783,20.12549,181.52,181.43,18.35399083]
[1734882288650,20.12549,181.52,181.42,19.18028215]
[1734882289083,20.12549,181.52,181.44,18.35399083]
[1734882289262,1.5168,181.54,181.46,18.35399083]
[1734882289471,1.5168,181.58,181.48,18.35399083]
[1734882289854,20.0,181.57,181.48,18.35399083]
[1734882290055,20.0,181.57,181.49,18.35399083]
[1734882290251,0.12549,181.56,181.47,19.18025163]
[1734882290490,0.12549,181.56,181.47,0.8262608]
[1734882290856,0.12549,181.56,181.47,19.18025163]
[1734882291096,23.902374,181.56,181.47,18.35399083]
[1734882291259,1.5168,181.58,181.47,18.35399083]
[1734882291458,1.5168,181.58,181.49,18.35399083]
[1734882291658,1.5168,181.58,181.48,18.35399083]
[1734882291970,1.5168,181.58,181.49,18.35399083]
[1734882292293,1.5168,181.58,181.51,18.35399083]
[1734882292502,5.847,181.6,181.52,19.17993264]
[1734882292992,0.12549,181.61,181.53,18.35399083]
[1734882293380,1.5168,181.62,181.55,18.35399083]
[1734882293772,0.12549,181.61,181.55,18.35399083]
[1734882293967,0.12549,181.61,181.54,19.17991405]
[1734882294167,0.12549,181.61,181.54,0.82592322]
[1734882294669,0.12549,181.61,181.53,18.35399083]
[1734882294876,0.12549,181.61,181.53,19.17990561]
[1734882295601,0.12549,181.61,181.54,18.35399083]
[1734882298185,1.5168,181.62,181.55,0.82589449]
[1734882299305,5.847,181.64,181.55,19.17988532]
[1734882299505,5.847,181.68,181.6,18.35399083]
[1734882299801,5.847,181.68,181.61,18.35399083]
[1734882300202,1.5168,181.71,181.62,18.35399083]
[1734882300580,1.5168,181.71,181.63,18.35399083]
[1734882300784,1.5168,181.71,181.62,18.35399083]
[1734882301209,1.5168,181.71,181.63,18.35399083]
[1734882301412,1.5168,181.71,181.64,18.35399083]
[1734882301615,10.1289857,181.75,181.68,18.35399083]
[1734882301909,10.1289857,181.75,181.67,18.35399083]
[1734882302112,10.1289857,181.75,181.66,18.35399083]
[1734882302494,0.12549,181.74,181.65,18.35399083]
[1734882302821,1.5812,181.75,181.65,18.35399083]
[1734882303704,0.12549,181.74,181.66,18.35399083]
[1734882303897,0.12549,181.74,181.66,19.1793812]
[1734882304106,0.12549,181.72,181.66,19.1793812]
[1734882304332,0.12549,181.72,181.66,0.82539037]
[1734882304712,0.12549,181.72,181.64,18.35399083]
[1734882305017,0.12549,181.72,181.58,1.5515]
[1734882305018,0.12549,181.68,181.59,18.35399083]
[1734882305190,0.12549,181.68,181.54,1.5444]
[1734882305393,0.12549,181.63,181.54,19.89839083]
[1734882305595,0.12549,181.63,181.54,18.35399083]
[1734882306316,0.12549,181.63,181.53,18.35399083]
[1734882306519,0.12549,181.63,181.54,18.35399083]
[1734882306822,0.12549,181.63,181.55,18.35399083]
[1734882307015,0.12549,181.63,181.58,18.35399083]
[1734882307207,5.847,181.67,181.58,18.35399083]
[1734882308020,0.12549,181.66,181.59,18.35399083]
[1734882308395,0.12549,181.66,181.57,18.35399083]
[1734882309108,0.12549,181.66,181.58,18.35399083]
[1734882310316,0.12549,181.66,181.57,18.35399083]
[1734882310616,20.0,181.64,181.57,18.35399083]
[1734882311003,0.12549,181.66,181.58,18.35399083]
[1734882311203,1.64,181.71,181.61,18.35399083]
[1734882311398,1.64,181.71,181.63,18.35399083]
[1734882311727,0.12549,181.71,181.64,18.35399083]
[1734882311898,0.12549,181.71,181.63,18.35399083]
[1734882314527,0.12549,181.71,181.62,19.17951468]
[1734882314710,0.12549,181.71,181.63,18.35399083]
[1734882315021,20.0,181.73,181.64,19.17944223]
[1734882315227,0.12549,181.71,181.64,19.17944223]
[1734882315408,0.12549,181.71,181.65,18.35399083]
[1734882315631,20.0,181.73,181.66,18.35399083]
[1734882316738,20.0,181.73,181.65,18.35399083]
[1734882316938,0.12549,181.72,181.64,0.8254514]
[1734882320744,0.12549,181.72,181.64,19.17944223]
[1734882321053,0.12549,181.72,181.65,18.35399083]
[1734882321347,0.12549,181.72,181.64,0.8254514]
[1734882321521,20.0,181.73,181.65,18.35399083]
[1734882321855,7.487,181.76,181.66,19.17932739]
[1734882322230,7.487,181.76,181.67,18.35399083]
[1734882323143,20.0,181.73,181.67,18.35399083]
[1734882323457,0.12549,181.72,181.64,18.35399083]
[1734882323622,0.12549,181.72,181.61,18.35399083]
[1734882324751,0.12549,181.72,181.62,18.35399083]
[1734882324954,0.12549,181.72,181.62,19.17947068]
[1734882326550,0.12549,181.72,181.63,18.35399083]
[1734882328251,0.12549,181.72,181.64,18.35399083]
[1734882328455,20.0,181.73,181.66,18.35399083]
[1734882328848,20.0,181.73,181.69,18.35399083]
[1734882329033,1.64,181.76,181.71,18.35399083]
[1734882329235,1.64,181.76,181.72,18.35399083]
[1734882329559,0.12549,181.79,181.71,18.35399083]
[1734882329956,0.12549,181.79,181.7,18.35399083]
[1734882330333,0.12549,181.76,181.71,18.35399083]
[1734882330553,20.12549,181.76,181.71,18.35399083]
[1734882330860,20.12549,181.76,181.72,18.35399083]
[1734882331229,20.0,181.77,181.72,18.35399083]
[1734882331736,20.0,181.77,181.71,18.35399083]
[1734882332440,0.12549,181.76,181.7,18.35399083]
[1734882333456,23.902374,181.76,181.67,18.35399083]
[1734882333660,0.12549,181.72,181.66,18.35399083]
[1734882335571,20.0,181.77,181.68,18.35399083]
[1734882335735,0.12549,181.76,181.67,18.35399083]
[1734882336262,0.12549,181.76,181.66,18.35399083]
[1734882336263,0.12549,181.72,181.66,18.35399083]
[1734882336447,0.12549,181.72,181.67,18.35399083]
[1734882336863,0.12549,181.72,181.66,18.35399083]
[1734882337244,0.12549,181.72,181.65,18.35399083]
[1734882337741,0.12549,181.72,181.66,18.35399083]
[1734882338358,0.12549,181.72,181.67,18.35399083]
[1734882338557,9.59996917,181.8,181.68,18.35399083]
[1734882338870,23.776884,181.79,181.69,18.35399083]
[1734882339370,0.12549,181.78,181.69,18.35399083]
[1734882339750,9.59996917,181.8,181.7,18.35399083]
[1734882340064,0.12549,181.79,181.7,18.35399083]
[1734882340249,0.12549,181.76,181.7,18.35399083]
[1734882340769,0.12549,181.76,181.68,18.35399083]
[1734882341684,0.12549,181.76,181.67,18.35399083]
[1734882342170,0.12549,181.72,181.66,18.35399083]
[1734882342842,0.12549,181.72,181.67,18.35399083]
[1734882344475,20.0,181.73,181.67,18.35399083]
[1734882344770,7.3569,181.8,181.7,18.35399083]
[1734882344966,7.3569,181.8,181.71,18.35399083]
[1734882345147,0.12549,181.79,181.71,18.35399083]
[1734882345864,20.0,181.77,181.71,18.35399083]
[1734882346357,20.0,181.77,181.7,18.35399083]
[1734882347058,20.0,181.77,181.71,18.35399083]
[1734882347871,0.12549,181.76,181.71,18.35399083]
[1734882349194,7.3569,181.8,181.72,18.35399083]
[1734882349660,0.12549,181.79,181.72,18.35399083]
[1734882350588,20.0,181.81,181.75,18.35399083]
[1734882350967,20.0,181.82,181.75,19.17892976]
[1734882351289,20.0,181.82,181.76,18.35399083]